[Event "SM-blixten 2025"]
[Site "Uppsala, Sweden"]
[Date "2025.07.03"]
[Round "2.3"]
[White "Carlsson, Ludvig"]
[Black "Berling, Egil"]
[Result "1-0"]
[TimeControl "3 min + 2 sec increment starting from move 1"]
[WhiteTitle "IM"]
[WhiteElo "2386"]
[BlackElo "2016"]

1. Nf3 {[%clk 00:03:02]} d5 {[%clk 00:03:04]} {[%emt 00:00:02]} 2. d4 {[%clk
00:03:03]} Nf6 {[%clk 00:03:05]} 3. c4 {[%clk 00:03:04]} {[%emt 00:00:02]} e6
{[%clk 00:03:05]} {[%emt 00:00:02]} 4. Nc3 {[%clk 00:03:04]} dxc4 {[%clk
00:03:06]} {[%emt 00:00:01]} 5. e4 {[%clk 00:03:05]} {[%emt 00:00:01]} b5
{[%clk 00:03:07]} {[%emt 00:00:01]} 6. Nxb5 {[%clk 00:03:05]} {[%emt 00:00:02]}
Nxe4 {[%clk 00:03:08]} {[%emt 00:00:02]} 7. Qa4 {[%clk 00:03:00]} {[%emt
00:00:06]} c6 {[%clk 00:02:48]} {[%emt 00:00:23]} 8. Nc3 {[%clk 00:03:01]} Nxc3
{[%clk 00:02:47]} {[%emt 00:00:03]} 9. bxc3 {[%clk 00:03:01]} {[%emt 00:00:01]}
Bd6 {[%clk 00:02:41]} {[%emt 00:00:08]} 10. Bxc4 {[%clk 00:02:58]} {[%emt
00:00:05]} O-O {[%clk 00:02:41]} {[%emt 00:00:03]} 11. O-O {[%clk 00:02:56]}
{[%emt 00:00:03]} Qc7 {[%clk 00:02:36]} {[%emt 00:00:08]} 12. Rb1 {[%clk
00:02:33]} {[%emt 00:00:24]} Nd7 {[%clk 00:02:35]} {[%emt 00:00:04]} 13. Qc2
{[%clk 00:02:28]} {[%emt 00:00:06]} Bb7 {[%clk 00:02:14]} {[%emt 00:00:22]} 14.
Bd3 {[%clk 00:02:09]} {[%emt 00:00:22]} h6 {[%clk 00:02:01]} {[%emt 00:00:15]}
15. h3 {[%clk 00:01:56]} {[%emt 00:00:14]} Rab8 {[%clk 00:02:00]} {[%emt
00:00:04]} 16. Be3 {[%clk 00:01:55]} {[%emt 00:00:03]} c5 {[%clk 00:02:00]}
{[%emt 00:00:03]} 17. Qe2 {[%clk 00:01:55]} {[%emt 00:00:02]} Nf6 {[%clk
00:01:58]} {[%emt 00:00:04]} 18. c4 {[%clk 00:01:45]} {[%emt 00:00:12]} Rfd8
{[%clk 00:01:44]} {[%emt 00:00:15]} 19. dxc5 Bxc5 {[%clk 00:01:45]} 20. Bxc5
{[%clk 00:01:25]} {[%emt 00:00:10]} Qxc5 {[%clk 00:01:46]} {[%emt 00:00:01]} 21.
Ne5 {[%clk 00:01:09]} {[%emt 00:00:19]} Ba8 {[%clk 00:01:31]} {[%emt 00:00:16]}
22. Rfe1 {[%clk 00:01:05]} {[%emt 00:00:06]} Rxb1 {[%clk 00:01:27]} {[%emt
00:00:06]} 23. Bxb1 {[%clk 00:01:05]} {[%emt 00:00:02]} Qe7 {[%clk 00:01:17]}
{[%emt 00:00:12]} 24. Qc2 {[%clk 00:01:00]} {[%emt 00:00:06]} g6 {[%clk
00:01:13]} {[%emt 00:00:07]} 25. Qc3 {[%clk 00:00:38]} {[%emt 00:00:24]} Nd7
{[%clk 00:01:06]} {[%emt 00:00:10]} 26. Ng4 {[%clk 00:00:37]} {[%emt 00:00:02]}
Kh7 {[%clk 00:01:04]} {[%emt 00:00:04]} 27. Rd1 {[%clk 00:00:37]} {[%emt
00:00:03]} Qg5 {[%clk 00:01:01]} {[%emt 00:00:05]} 28. f3 {[%clk 00:00:35]}
{[%emt 00:00:03]} h5 {[%clk 00:01:00]} {[%emt 00:00:03]} 29. Rxd7 {[%clk
00:00:35]} {[%emt 00:00:02]} hxg4 {[%clk 00:00:43]} {[%emt 00:00:19]} 30. Rxf7+
{[%clk 00:00:35]} {[%emt 00:00:02]} 1-0

[Event "SM-blixten 2025"]
[Site "Uppsala, Sweden"]
[Date "2025.07.03"]
[Round "3.9"]
[White "Karlsson, Tomas"]
[Black "Mardell, Jonas"]
[Result "1-0"]
[TimeControl "3 min + 2 sec increment starting from move 1"]
[WhiteTitle "FM"]
[WhiteElo "2239"]
[BlackElo "2046"]

1. e4 {[%clk 00:03:03]} c5 {[%clk 00:03:03]} {[%emt 00:00:02]} 2. Nf3 {[%clk
00:03:03]} {[%emt 00:00:01]} d6 {[%clk 00:03:04]} {[%emt 00:00:01]} 3. d4
{[%clk 00:03:05]} cxd4 {[%clk 00:03:05]} {[%emt 00:00:02]} 4. Nxd4 {[%clk
00:03:06]} {[%emt 00:00:01]} Nf6 {[%clk 00:03:06]} 5. Nc3 {[%clk 00:03:07]} a6
{[%clk 00:03:07]} {[%emt 00:00:02]} 6. h3 {[%clk 00:03:08]} h5 {[%clk
00:02:56]} {[%emt 00:00:12]} 7. g3 {[%clk 00:03:03]} {[%emt 00:00:07]} e5
{[%clk 00:02:51]} {[%emt 00:00:07]} 8. Nde2 {[%clk 00:02:58]} {[%emt 00:00:06]}
Be6 {[%clk 00:02:49]} {[%emt 00:00:05]} 9. Bg2 {[%clk 00:02:57]} {[%emt
00:00:04]} Be7 {[%clk 00:02:48]} {[%emt 00:00:03]} 10. Be3 {[%clk 00:02:53]}
{[%emt 00:00:06]} Nbd7 {[%clk 00:02:46]} {[%emt 00:00:04]} 11. Nd5 {[%clk
00:02:43]} {[%emt 00:00:11]} Nxd5 {[%clk 00:02:37]} {[%emt 00:00:10]} 12. exd5
{[%clk 00:02:44]} {[%emt 00:00:02]} Bf5 {[%clk 00:02:38]} {[%emt 00:00:01]} 13.
O-O {[%clk 00:02:40]} {[%emt 00:00:05]} Nf6 {[%clk 00:02:27]} {[%emt 00:00:14]}
14. c4 {[%clk 00:02:28]} {[%emt 00:00:14]} Qd7 {[%clk 00:02:21]} {[%emt
00:00:07]} 15. h4 {[%clk 00:02:01]} {[%emt 00:00:28]} Bh3 {[%clk 00:02:09]}
{[%emt 00:00:15]} 16. Nc3 {[%clk 00:01:54]} {[%emt 00:00:10]} Bxg2 {[%clk
00:02:08]} {[%emt 00:00:02]} 17. Kxg2 {[%clk 00:01:55]} {[%emt 00:00:02]} Ng4
{[%clk 00:02:04]} {[%emt 00:00:05]} 18. Qa4 {[%clk 00:01:14]} {[%emt 00:00:43]}
Qxa4 {[%clk 00:01:40]} {[%emt 00:00:26]} 19. Nxa4 {[%clk 00:01:15]} Nxe3+
{[%clk 00:01:32]} {[%emt 00:00:11]} 20. fxe3 {[%clk 00:01:16]} b5 {[%clk
00:01:33]} {[%emt 00:00:01]} 21. cxb5 {[%clk 00:01:14]} {[%emt 00:00:03]} axb5
{[%clk 00:01:33]} {[%emt 00:00:01]} 22. Nc3 {[%clk 00:01:14]} {[%emt 00:00:02]}
Rb8 {[%clk 00:01:27]} {[%emt 00:00:08]} 23. Rfc1 {[%clk 00:01:01]} {[%emt
00:00:15]} Kd7 {[%clk 00:01:24]} {[%emt 00:00:05]} 24. Kf3 {[%clk 00:00:58]}
{[%emt 00:00:05]} Rhc8 {[%clk 00:01:22]} {[%emt 00:00:04]} 25. Ne4 {[%clk
00:00:55]} {[%emt 00:00:05]} f5 {[%clk 00:01:14]} {[%emt 00:00:09]} 26. Nc3
{[%clk 00:00:50]} {[%emt 00:00:08]} Rc4 {[%clk 00:00:55]} {[%emt 00:00:21]} 27.
b3 {[%clk 00:00:39]} {[%emt 00:00:13]} Rc5 {[%clk 00:00:46]} {[%emt 00:00:10]}
28. e4 {[%clk 00:00:36]} {[%emt 00:00:06]} Rbc8 {[%clk 00:00:38]} {[%emt
00:00:10]} 29. Ne2 {[%clk 00:00:36]} {[%emt 00:00:02]} g6 {[%clk 00:00:32]}
{[%emt 00:00:08]} 30. Ke3 {[%clk 00:00:27]} {[%emt 00:00:10]} Bf8 {[%clk
00:00:31]} {[%emt 00:00:04]} 31. Kd3 {[%clk 00:00:26]} {[%emt 00:00:04]} Bh6
{[%clk 00:00:31]} {[%emt 00:00:01]} 32. Rxc5 {[%emt 00:00:03]} Rxc5 {[%clk
00:00:32]} 33. a4 {[%clk 00:00:25]} {[%emt 00:00:03]} fxe4+ {[%clk 00:00:26]}
{[%emt 00:00:08]} 34. Kxe4 {[%clk 00:00:23]} {[%emt 00:00:04]} Rc2 {[%clk
00:00:27]} {[%emt 00:00:02]} 35. Kf3 {[%clk 00:00:19]} {[%emt 00:00:06]} bxa4
{[%clk 00:00:24]} {[%emt 00:00:05]} 36. Rxa4 {[%emt 00:00:07]} Rc5 {[%clk
00:00:24]} 37. Ra7+ {[%clk 00:00:13]} {[%emt 00:00:04]} Kc8 {[%clk 00:00:25]}
{[%emt 00:00:02]} 38. Rh7 {[%clk 00:00:13]} {[%emt 00:00:02]} Bd2 {[%clk
00:00:23]} {[%emt 00:00:04]} 39. Rg7 {[%clk 00:00:13]} {[%emt 00:00:02]} Rxd5
{[%clk 00:00:23]} {[%emt 00:00:02]} 40. Rxg6 {[%clk 00:00:13]} {[%emt
00:00:01]} Rd3+ {[%clk 00:00:25]} {[%emt 00:00:01]} 41. Kf2 {[%clk 00:00:12]}
{[%emt 00:00:03]} Rxb3 {[%clk 00:00:25]} {[%emt 00:00:02]} 42. Rxd6 {[%clk
00:00:12]} {[%emt 00:00:02]} Bb4 {[%clk 00:00:23]} {[%emt 00:00:04]} 43. Rd5
{[%clk 00:00:12]} {[%emt 00:00:02]} e4 {[%clk 00:00:18]} {[%emt 00:00:06]} 44.
Rxh5 {[%clk 00:00:12]} {[%emt 00:00:02]} Kd7 {[%clk 00:00:13]} {[%emt
00:00:08]} 45. Re5 {[%clk 00:00:12]} {[%emt 00:00:01]} e3+ {[%clk 00:00:12]}
{[%emt 00:00:03]} 46. Kf3 {[%clk 00:00:13]} {[%emt 00:00:01]} Bd2 {[%clk
00:00:12]} {[%emt 00:00:02]} 47. h5 {[%clk 00:00:13]} {[%emt 00:00:02]} Kd6
{[%clk 00:00:14]} 48. Re4 {[%clk 00:00:13]} {[%emt 00:00:01]} Rb5 {[%clk
00:00:13]} {[%emt 00:00:03]} 49. g4 {[%clk 00:00:14]} Rb8 {[%clk 00:00:14]}
{[%emt 00:00:02]} 50. Rf4 {[%clk 00:00:13]} {[%emt 00:00:02]} Rb1 {[%clk
00:00:13]} {[%emt 00:00:03]} 51. g5 {[%clk 00:00:12]} {[%emt 00:00:03]} Rf1+
{[%clk 00:00:14]} {[%emt 00:00:02]} 52. Ke4 {[%clk 00:00:12]} {[%emt 00:00:01]}
Rf2 {[%clk 00:00:13]} {[%emt 00:00:03]} 53. Kd3 {[%clk 00:00:09]} {[%emt
00:00:06]} Bc1 {[%clk 00:00:09]} {[%emt 00:00:06]} 54. h6 {[%clk 00:00:07]}
{[%emt 00:00:04]} Bb2 {[%clk 00:00:08]} {[%emt 00:00:03]} 55. Kxe3 {[%clk
00:00:06]} {[%emt 00:00:02]} Rh2 {[%clk 00:00:08]} {[%emt 00:00:02]} 56. Kf3
{[%clk 00:00:07]} {[%emt 00:00:01]} Ke7 {[%clk 00:00:08]} {[%emt 00:00:03]} 57.
Rg4 {[%clk 00:00:07]} {[%emt 00:00:01]} Kf7 {[%clk 00:00:09]} 58. g6+ {[%clk
00:00:07]} {[%emt 00:00:02]} Kg8 {[%clk 00:00:11]} 59. h7+ {[%clk 00:00:08]}
{[%emt 00:00:02]} Kg7 {[%clk 00:00:12]} {[%emt 00:00:01]} 60. Nf4 {[%clk
00:00:07]} {[%emt 00:00:01]} Rh1 {[%clk 00:00:12]} {[%emt 00:00:03]} 61. Ke4
{[%clk 00:00:06]} {[%emt 00:00:04]} Re1+ {[%clk 00:00:11]} {[%emt 00:00:02]} 62.
Kf3 {[%clk 00:00:05]} {[%emt 00:00:02]} Re5 {[%clk 00:00:12]} {[%emt 00:00:03]}
63. Ne2 {[%clk 00:00:03]} {[%emt 00:00:03]} Ba1 {[%clk 00:00:13]} {[%emt
00:00:02]} 64. Ng3 {[%clk 00:00:03]} {[%emt 00:00:01]} Rc5 {[%clk 00:00:14]} 65.
Ne4 {[%clk 00:00:03]} {[%emt 00:00:02]} Rf5+ {[%clk 00:00:14]} {[%emt
00:00:02]} 66. Ke3 {[%clk 00:00:04]} {[%emt 00:00:01]} Be5 {[%clk 00:00:15]}
{[%emt 00:00:02]} 67. Kd3 {[%clk 00:00:03]} {[%emt 00:00:02]} Rf3+ {[%clk
00:00:16]} {[%emt 00:00:01]} 68. Kc4 {[%clk 00:00:05]} Rf4 {[%clk 00:00:16]}
{[%emt 00:00:02]} 69. Rxf4 {[%clk 00:00:04]} {[%emt 00:00:03]} Bxf4 {[%clk
00:00:17]} {[%emt 00:00:01]} 70. Kd5 {[%clk 00:00:05]} Bh6 {[%clk 00:00:17]} 71.
Nd6 {[%clk 00:00:05]} {[%emt 00:00:02]} Kh8 {[%clk 00:00:17]} {[%emt 00:00:02]}
72. Ke6 {[%clk 00:00:06]} {[%emt 00:00:01]} Bg7 {[%clk 00:00:18]} {[%emt
00:00:01]} 73. Nf7# {[%clk 00:00:07]} 1-0

[Event "SM-blixten 2025"]
[Site "Uppsala, Sweden"]
[Date "2025.07.03"]
[Round "5.5"]
[White "Odell Johansson, Leo"]
[Black "Seo, Jung Min"]
[Result "0-1"]
[TimeControl "3 min + 2 sec increment starting from move 1"]
[BlackTitle "IM"]
[WhiteElo "1991"]
[BlackElo "2468"]

1. c4 {[%clk 00:03:02]} {[%emt 00:00:01]} e5 {[%clk 00:03:03]} 2. Nc3 {[%clk
00:03:04]} {[%emt 00:00:01]} Nf6 {[%clk 08:03:04]} {[%emt 00:00:02]} 3. g3
{[%clk 00:03:05]} {[%emt 00:00:01]} Bb4 {[%clk 00:03:03]} {[%emt 00:00:02]} 4.
e4 {[%clk 00:03:05]} {[%emt 00:00:01]} Bxc3 {[%clk 00:03:00]} {[%emt 00:00:06]}
5. dxc3 {[%clk 00:03:06]} {[%emt 00:00:01]} O-O {[%clk 00:02:57]} {[%emt
00:00:05]} 6. f3 {[%clk 00:03:07]} {[%emt 00:00:01]} c6 {[%clk 00:02:51]}
{[%emt 00:00:08]} 7. c5 {[%clk 00:02:22]} {[%emt 00:00:47]} b6 {[%clk
00:02:50]} {[%emt 00:00:03]} 8. Be3 {[%clk 00:02:22]} {[%emt 00:00:02]} Na6
{[%clk 00:02:42]} {[%emt 00:00:09]} 9. Bxa6 {[%clk 00:01:52]} {[%emt 00:00:33]}
Bxa6 {[%clk 00:02:43]} 10. Ne2 {[%clk 00:01:49]} {[%emt 00:00:04]} Re8 {[%clk
00:02:41]} {[%emt 00:00:04]} 11. O-O {[%clk 00:01:48]} {[%emt 00:00:04]} bxc5
{[%clk 00:02:41]} {[%emt 00:00:02]} 12. Bxc5 {[%clk 00:01:49]} {[%emt
00:00:01]} d6 {[%clk 00:02:41]} {[%emt 00:00:02]} 13. Ba3 {[%clk 00:01:43]}
{[%emt 00:00:08]} Qb6+ {[%clk 00:02:39]} {[%emt 00:00:04]} 14. Rf2 {[%clk
00:01:20]} {[%emt 00:00:25]} d5 {[%clk 00:02:40]} {[%emt 00:00:01]} 15. exd5
{[%clk 00:01:18]} {[%emt 00:00:04]} cxd5 {[%clk 00:02:40]} {[%emt 00:00:01]} 16.
Qd2 {[%clk 00:00:55]} {[%emt 00:00:25]} Rad8 {[%clk 00:02:36]} {[%emt
00:00:06]} 17. Kg2 {[%clk 00:00:40]} {[%emt 00:00:18]} Bb7 {[%clk 00:02:34]}
{[%emt 00:00:03]} 18. Rff1 {[%clk 00:00:27]} {[%emt 00:00:15]} d4 {[%clk
00:02:27]} {[%emt 00:00:09]} 19. cxd4 {[%clk 00:00:25]} {[%emt 00:00:05]} e4
{[%clk 00:02:27]} {[%emt 00:00:02]} 20. Bc5 {[%emt 00:00:18]} Qxc5 {[%clk
00:02:22]} {[%emt 00:00:07]} 21. Kg1 {[%emt 00:00:09]} 0-1

[Event "SM-blixten 2025"]
[Site "Uppsala, Sweden"]
[Date "2025.07.03"]
[Round "7.1"]
[White "Religa, Marek"]
[Black "Galperin, Platon"]
[Result "0-1"]
[TimeControl "3 min + 2 sec increment starting from move 1"]
[BlackTitle "GM"]
[WhiteElo "2227"]
[BlackElo "2506"]

1. e4 {[%clk 00:03:04]} g6 {[%clk 00:03:03]} 2. d4 {[%clk 00:03:05]} {[%emt
00:00:01]} d6 {[%clk 00:03:05]} 3. c4 {[%clk 00:03:06]} {[%emt 00:00:02]} Bg7
{[%clk 00:03:05]} {[%emt 00:00:01]} 4. Nc3 {[%clk 00:03:07]} {[%emt 00:00:01]}
Nf6 {[%clk 00:03:06]} {[%emt 00:00:01]} 5. h3 {[%clk 00:03:05]} {[%emt
00:00:04]} O-O {[%clk 00:03:05]} {[%emt 00:00:03]} 6. Be3 {[%clk 00:03:06]}
Nbd7 {[%clk 00:03:06]} {[%emt 00:00:01]} 7. Nf3 {[%clk 00:02:48]} {[%emt
00:00:20]} a5 {[%clk 00:03:03]} {[%emt 00:00:05]} 8. g4 {[%clk 00:02:47]}
{[%emt 00:00:04]} a4 {[%clk 00:03:02]} {[%emt 00:00:02]} 9. Qd2 {[%clk
00:02:41]} {[%emt 00:00:08]} c5 {[%clk 00:03:01]} {[%emt 00:00:03]} 10. O-O-O
{[%clk 00:02:20]} {[%emt 00:00:23]} b5 {[%clk 00:03:00]} {[%emt 00:00:03]} 11.
cxb5 {[%clk 00:02:08]} {[%emt 00:00:13]} Bb7 {[%clk 00:02:57]} {[%emt
00:00:05]} 12. Bd3 {[%clk 00:02:01]} {[%emt 00:00:10]} cxd4 {[%clk 00:02:54]}
{[%emt 00:00:04]} 13. Nxd4 {[%clk 00:02:00]} {[%emt 00:00:03]} a3 {[%clk
00:02:43]} {[%emt 00:00:14]} 14. b3 {[%clk 00:01:55]} {[%emt 00:00:07]} Ne5
{[%clk 00:02:39]} {[%emt 00:00:06]} 15. Bc2 {[%clk 00:01:37]} {[%emt 00:00:20]}
Rc8 {[%clk 00:02:29]} {[%emt 00:00:12]} 16. f3 {[%clk 00:01:18]} {[%emt
00:00:21]} Nxf3 {[%clk 00:02:21]} {[%emt 00:00:09]} 17. Nxf3 {[%clk 00:01:02]}
{[%emt 00:00:19]} Nxe4 {[%clk 00:02:11]} {[%emt 00:00:11]} 18. Nxe4 {[%clk
00:01:02]} {[%emt 00:00:02]} Bxe4 {[%clk 00:02:12]} {[%emt 00:00:02]} 19. Ne1
{[%clk 00:00:32]} {[%emt 00:00:32]} Bxh1 {[%clk 00:02:10]} {[%emt 00:00:04]} 20.
Kb1 {[%clk 00:00:33]} {[%emt 00:00:01]} Qd7 {[%clk 00:02:06]} {[%emt 00:00:06]}
21. Bd3 {[%clk 00:00:31]} {[%emt 00:00:04]} Qb7 {[%clk 00:02:01]} {[%emt
00:00:07]} 22. Nc2 {[%clk 00:00:31]} {[%emt 00:00:02]} Be4 {[%clk 00:02:01]}
{[%emt 00:00:02]} 23. Nxa3 {[%clk 00:00:31]} {[%emt 00:00:03]} Ra8 {[%clk
00:01:57]} {[%emt 00:00:05]} 24. Nc2 {[%clk 00:00:24]} {[%emt 00:00:09]} Rfc8
{[%clk 00:01:49]} {[%emt 00:00:09]} 25. Bd4 {[%clk 00:00:16]} {[%emt 00:00:10]}
e5 {[%clk 00:01:39]} {[%emt 00:00:13]} 26. Bb2 {[%clk 00:00:13]} {[%emt
00:00:04]} Bf3 {[%clk 00:01:11]} {[%emt 00:00:30]} 27. Be2 {[%clk 00:00:10]}
{[%emt 00:00:06]} Bxe2 {[%clk 00:01:06]} {[%emt 00:00:06]} 28. Qxe2 {[%clk
00:00:11]} {[%emt 00:00:01]} d5 {[%clk 00:01:07]} {[%emt 00:00:02]} 29. Qf3
{[%clk 00:00:08]} {[%emt 00:00:04]} Qxb5 {[%clk 00:01:03]} {[%emt 00:00:06]} 30.
Rxd5 {[%clk 00:00:06]} {[%emt 00:00:05]} Qa6 {[%clk 00:00:52]} {[%emt
00:00:14]} 31. a4 {[%clk 00:00:07]} Rab8 {[%clk 00:00:44]} {[%emt 00:00:09]} 32.
Rd7 {[%clk 00:00:08]} {[%emt 00:00:01]} Qe6 {[%clk 00:00:45]} {[%emt 00:00:01]}
33. Qd3 {[%clk 00:00:07]} {[%emt 00:00:04]} e4 {[%clk 00:00:43]} {[%emt
00:00:04]} 34. Qd5 {[%clk 00:00:06]} {[%emt 00:00:03]} Qxd5 {[%clk 00:00:43]}
{[%emt 00:00:02]} 35. Rxd5 {[%clk 00:00:06]} {[%emt 00:00:01]} Rxb3 {[%clk
00:00:44]} {[%emt 00:00:02]} 36. Rb5 {[%clk 00:00:07]} Rxb5 37. axb5 {[%clk
00:00:09]} Rb8 {[%clk 00:00:33]} {[%emt 00:00:03]} 38. Na3 {[%clk 00:00:09]}
{[%emt 00:00:02]} Bf8 {[%clk 00:00:31]} {[%emt 00:00:04]} 39. Be5 {[%clk
00:00:08]} {[%emt 00:00:02]} Rb7 {[%clk 00:00:31]} {[%emt 00:00:02]} 0-1

[Event "SM-blixten 2025"]
[Site "Uppsala, Sweden"]
[Date "2025.07.03"]
[Round "8.7"]
[White "Johnson, Daniel"]
[Black "Tadjerbashi, Amir"]
[Result "1-0"]
[TimeControl "3 min + 2 sec increment starting from move 1"]
[WhiteElo "2175"]
[BlackElo "2235"]

1. d4 {[%clk 00:03:02]} {[%emt 00:00:01]} d5 {[%clk 00:03:03]} {[%emt
00:00:02]} 2. c4 {[%clk 00:03:03]} {[%emt 00:00:01]} e6 {[%clk 00:03:04]} 3.
Nc3 {[%clk 00:03:03]} {[%emt 00:00:01]} c6 {[%clk 00:03:05]} {[%emt 00:00:01]}
4. e4 {[%clk 00:03:02]} {[%emt 00:00:02]} Bb4 {[%clk 00:03:06]} {[%emt
00:00:01]} 5. cxd5 {[%clk 00:02:20]} {[%emt 00:00:45]} exd5 {[%clk 00:03:07]}
{[%emt 00:00:02]} 6. e5 {[%clk 00:02:20]} {[%emt 00:00:01]} Bf5 {[%clk
00:03:06]} {[%emt 00:00:03]} 7. Bd3 {[%clk 00:02:20]} {[%emt 00:00:02]} Qd7
{[%clk 00:02:26]} {[%emt 00:00:41]} 8. Nge2 {[%clk 00:02:20]} {[%emt 00:00:02]}
h5 {[%clk 00:02:21]} {[%emt 00:00:07]} 9. a3 {[%clk 00:02:15]} {[%emt
00:00:08]} Ba5 {[%clk 00:02:22]} {[%emt 00:00:01]} 10. b4 {[%clk 00:02:10]}
{[%emt 00:00:07]} Bd8 {[%clk 00:02:21]} {[%emt 00:00:02]} 11. Be3 {[%clk
00:02:07]} {[%emt 00:00:05]} h4 {[%clk 00:02:10]} {[%emt 00:00:13]} 12. h3
{[%clk 00:02:06]} {[%emt 00:00:02]} Nh6 {[%clk 00:02:07]} {[%emt 00:00:06]} 13.
Rc1 {[%clk 00:02:05]} {[%emt 00:00:03]} Be7 {[%clk 00:01:55]} {[%emt 00:00:14]}
14. Na4 {[%clk 00:02:01]} {[%emt 00:00:06]} b6 {[%clk 00:01:42]} {[%emt
00:00:16]} 15. Nf4 {[%clk 00:02:01]} {[%emt 00:00:01]} Bxd3 {[%clk 00:01:28]}
{[%emt 00:00:17]} 16. Qxd3 {[%clk 00:01:47]} {[%emt 00:00:15]} g5 {[%clk
00:01:28]} {[%emt 00:00:02]} 17. Nh5 {[%clk 00:01:46]} {[%emt 00:00:03]} Kf8
{[%clk 00:01:12]} {[%emt 00:00:18]} 18. g4 {[%clk 00:01:31]} {[%emt 00:00:18]}
hxg3 {[%clk 00:00:56]} {[%emt 00:00:18]} 19. Nxg3 {[%clk 00:01:31]} {[%emt
00:00:02]} Qe6 {[%clk 00:00:45]} {[%emt 00:00:12]} 20. Nc3 {[%clk 00:01:13]}
{[%emt 00:00:20]} Nd7 {[%clk 00:00:46]} {[%emt 00:00:02]} 21. Nce2 {[%clk
00:00:54]} {[%emt 00:00:21]} a5 {[%clk 00:00:37]} {[%emt 00:00:11]} 22. f4
{[%clk 00:00:54]} {[%emt 00:00:02]} f5 {[%clk 00:00:11]} {[%emt 00:00:28]} 23.
fxg5 {[%clk 00:00:50]} {[%emt 00:00:05]} Nf7 {[%clk 00:00:12]} {[%emt
00:00:01]} 24. Nxf5 {[%clk 00:00:22]} {[%emt 00:00:30]} Bxg5 {[%clk 00:00:09]}
{[%emt 00:00:06]} 25. Rf1 {[%clk 00:00:23]} Bxe3 {[%clk 00:00:09]} {[%emt
00:00:01]} 26. Qxe3 {[%clk 00:00:24]} {[%emt 00:00:02]} Ke8 {[%clk 00:00:10]}
{[%emt 00:00:01]} 27. Ng7+ {[%clk 00:00:21]} {[%emt 00:00:04]} 1-0

[Event "SM-blixten 2025"]
[Site "Uppsala, Sweden"]
[Date "2025.07.03"]
[Round "10.3"]
[White "Bjorkman, Filip"]
[Black "Seo, Jung Min"]
[Result "0-1"]
[TimeControl "3 min + 2 sec increment starting from move 1"]
[BlackTitle "IM"]
[WhiteElo "2116"]
[BlackElo "2468"]

1. e4 {[%clk 00:03:02]} {[%emt 00:00:01]} c5 {[%clk 00:03:03]} {[%emt
00:00:02]} 2. Nf3 {[%clk 00:03:03]} Nc6 {[%clk 00:03:04]} {[%emt 00:00:01]} 3.
d4 {[%clk 00:03:04]} cxd4 {[%clk 00:03:05]} {[%emt 00:00:02]} 4. Nxd4 {[%clk
00:03:05]} Qb6 {[%clk 00:03:06]} {[%emt 00:00:02]} 5. Nb3 {[%clk 00:03:02]}
{[%emt 00:00:05]} e6 {[%clk 00:03:07]} 6. Be3 {[%clk 00:03:02]} {[%emt
00:00:02]} Qc7 {[%clk 00:03:09]} 7. Nc3 {[%clk 00:03:02]} {[%emt 00:00:02]} a6
{[%clk 00:03:10]} 8. Qd2 {[%clk 00:02:46]} {[%emt 00:00:17]} Nf6 {[%clk
00:03:04]} {[%emt 00:00:08]} 9. a3 {[%clk 00:02:46]} {[%emt 00:00:03]} b5
{[%clk 00:03:02]} {[%emt 00:00:04]} 10. f3 {[%clk 00:02:40]} {[%emt 00:00:06]}
b4 {[%clk 00:02:45]} {[%emt 00:00:20]} 11. axb4 {[%clk 00:02:29]} {[%emt
00:00:13]} Bxb4 {[%clk 00:02:46]} {[%emt 00:00:01]} 12. Bc5 {[%clk 00:02:25]}
{[%emt 00:00:06]} Bxc5 {[%clk 00:02:34]} {[%emt 00:00:14]} 13. Nxc5 {[%clk
00:02:26]} {[%emt 00:00:02]} O-O {[%clk 00:02:33]} {[%emt 00:00:02]} 14. Be2
{[%clk 00:02:14]} {[%emt 00:00:14]} d6 {[%clk 00:02:30]} {[%emt 00:00:06]} 15.
Nb3 {[%clk 00:02:14]} {[%emt 00:00:01]} Rd8 {[%clk 00:02:20]} {[%emt 00:00:11]}
16. O-O {[%clk 00:02:13]} {[%emt 00:00:04]} e5 {[%clk 00:02:21]} {[%emt
00:00:01]} 17. Bc4 {[%clk 00:01:27]} {[%emt 00:00:49]} Be6 {[%clk 00:01:50]}
{[%emt 00:00:33]} 18. Nd5 {[%clk 00:01:01]} {[%emt 00:00:27]} Bxd5 {[%clk
00:01:50]} {[%emt 00:00:02]} 19. Bxd5 {[%clk 00:00:59]} {[%emt 00:00:04]} Nxd5
{[%clk 00:01:50]} {[%emt 00:00:03]} 20. exd5 {[%clk 00:00:58]} {[%emt
00:00:02]} Ne7 {[%clk 00:01:51]} 21. Kh1 {[%clk 00:00:52]} {[%emt 00:00:08]}
Qc4 {[%clk 00:01:41]} {[%emt 00:00:12]} 22. Na5 {[%clk 00:00:24]} {[%emt
00:00:31]} Qxd5 {[%clk 00:01:29]} {[%emt 00:00:14]} 23. Qxd5 {[%clk 00:00:25]}
Nxd5 {[%clk 00:01:30]} {[%emt 00:00:01]} 24. Rfd1 {[%clk 00:00:24]} {[%emt
00:00:03]} Ne3 {[%clk 00:01:26]} {[%emt 00:00:06]} 25. Rd2 {[%clk 00:00:20]}
{[%emt 00:00:05]} d5 {[%clk 00:01:22]} {[%emt 00:00:05]} 26. Nc6 {[%clk
00:00:20]} {[%emt 00:00:03]} Re8 {[%clk 00:01:21]} {[%emt 00:00:03]} 27. Nb4
{[%clk 00:00:21]} {[%emt 00:00:01]} d4 {[%clk 00:01:19]} {[%emt 00:00:04]} 28.
c3 {[%clk 00:00:12]} {[%emt 00:00:11]} Nc4 {[%clk 00:01:08]} {[%emt 00:00:13]}
29. Rf2 {[%clk 00:00:11]} {[%emt 00:00:03]} a5 {[%clk 00:01:07]} {[%emt
00:00:03]} 30. Nd5 {[%clk 00:00:10]} {[%emt 00:00:03]} Red8 {[%clk 00:01:01]}
{[%emt 00:00:09]} 31. b3 {[%clk 00:00:08]} {[%emt 00:00:04]} Rxd5 {[%clk
00:00:41]} {[%emt 00:00:22]} 32. bxc4 {[%clk 00:00:09]} {[%emt 00:00:01]} Rc5
{[%clk 00:00:42]} 33. cxd4 {[%clk 00:00:10]} {[%emt 00:00:01]} exd4 {[%clk
00:00:43]} {[%emt 00:00:01]} 34. Ra4 {[%clk 00:00:11]} {[%emt 00:00:01]} Rb8
{[%clk 00:00:32]} {[%emt 00:00:13]} 35. h4 {[%clk 00:00:04]} {[%emt 00:00:09]}
Rb4 {[%clk 00:00:31]} {[%emt 00:00:03]} 36. Rfa2 {[%clk 00:00:04]} {[%emt
00:00:01]} Rxa4 {[%clk 00:00:24]} {[%emt 00:00:10]} 37. Rxa4 {[%clk 00:00:05]}
{[%emt 00:00:01]} Kf8 {[%clk 00:00:24]} {[%emt 00:00:02]} 38. Kg1 {[%emt
00:00:01]} d3 {[%clk 00:00:09]} {[%emt 00:00:17]} 39. Kf2 {[%clk 00:00:07]}
{[%emt 00:00:01]} Re5 {[%clk 00:00:10]} 0-1